bitfinex-derivatives/quotes_ETHF0:USTF0_20250928
["timestamp","ask_amount","ask_price","bid_price","bid_amount"]
[1759030069385,0.00293807,4004.7,4004.6,1.46803]
[1759030079284,0.32483807,4004.7,4004.6,2.88222456]
[1759030079490,0.53813807,4004.7,4004.6,2.88222456]
[1759030080295,0.53813807,4004.7,4004.6,2.63222456]
[1759030080498,0.74883807,4004.7,4004.6,2.88222456]
[1759030082693,0.74883807,4004.7,4004.6,0.6979]
[1759030083202,0.74883807,4004.7,4004.6,1.0112]
[1759030085111,0.74883807,4004.7,4004.6,1.46043]
[1759030089813,1.19805807,4004.7,4004.6,1.46043]
[1759030090009,1.19805807,4004.7,4004.6,0.4479]
[1759030090214,1.19805807,4004.7,4004.6,0.6979]
[1759030090813,1.19805807,4004.7,4004.6,1.0074]
[1759030093510,1.19805807,4004.7,4004.6,1.20663]
[1759030093814,1.19805807,4004.7,4004.6,1.45663]
[1759030094709,1.19805807,4004.7,4004.6,1.20663]
[1759030094916,1.19805807,4004.7,4004.6,1.45663]
[1759030095518,1.19805807,4004.7,4004.6,1.20663]
[1759030095716,1.19805807,4004.7,4004.6,1.0074]
[1759030096119,1.19805807,4004.7,4004.6,1.45663]
[1759030096919,1.73347972,4004.7,4004.6,1.45663]
[1759030097107,1.73350113,4004.7,4004.6,1.45663]
[1759030099423,1.73350113,4004.7,4004.6,1.20663]
[1759030099623,1.73350113,4004.7,4004.6,1.45663]
[1759030099825,1.73350113,4004.7,4004.6,1.20663]
[1759030100024,1.73350113,4004.7,4004.6,1.45663]
[1759030100324,1.73350113,4004.7,4004.6,1.20663]
[1759030100524,1.73350113,4004.7,4004.6,1.45663]
[1759030101125,1.19805807,4004.7,4004.6,1.45663]
[1759030101325,1.73348382,4004.7,4004.6,1.45663]
[1759030101717,1.73348382,4004.7,4004.6,1.20663]
[1759030101919,1.73348382,4004.7,4004.6,1.45663]
[1759030103127,1.19805807,4004.7,4004.6,1.45663]
[1759030106128,1.73348386,4004.7,4004.6,1.45663]
[1759030114036,1.28426386,4004.7,4004.6,1.45663]
[1759030114636,1.07356386,4004.7,4004.6,1.45663]
[1759030115237,0.00293807,4004.7,4004.6,1.45663]
[1759030121343,0.31393807,4004.7,4004.6,1.45663]
[1759030126545,1.19735807,4004.7,4004.6,1.0074]
[1759030127247,0.74813807,4004.7,4004.6,1.45663]
[1759030127741,1.19735807,4004.7,4004.6,1.45663]
[1759030128648,1.19735807,4004.7,4004.6,1.0074]
[1759030129847,1.19735807,4004.7,4004.6,1.45663]
[1759030130648,1.19735807,4004.7,4004.6,2.59137043]
[1759030131941,0.74813807,4004.7,4004.6,2.59137043]
[1759030133045,0.52653807,4004.7,4004.6,2.59137043]
[1759030143156,0.74653807,4004.7,4004.6,1.45663]
[1759030143455,0.74653807,4004.7,4004.6,2.59137043]
[1759030147259,0.74653807,4004.7,4004.6,2.34137043]
[1759030147564,1.01875,4004.5,4004.3,3.65706]
[1759030147764,1.01875,4004.5,4004.4,0.25]
[1759030147961,1.55531781,4004.5,4004.4,0.4747]
[1759030148260,1.87341781,4004.5,4004.4,0.4747]
[1759030148464,1.55531781,4004.5,4004.3,3.2078]
[1759030148664,1.29861761,4004.4,4004.3,3.2078]
[1759030148869,1.29861761,4004.4,4004.3,3.4578]
[1759030149059,0.7622,4004.4,4004.3,3.4578]
[1759030149260,0.7622,4004.4,4004.3,3.6825]
[1759030150471,1.29836433,4004.4,4004.3,3.6825]
[1759030152860,0.7622,4004.4,4004.3,3.9907]
[1759030153270,0.3102,4004.6,4004.5,0.4423]
[1759030153571,0.84605566,4004.6,4004.5,1.54884]
[1759030153770,1.07305566,4004.6,4004.5,1.54884]
[1759030153971,1.28815566,4004.6,4004.5,1.44974]
[1759030155273,1.28815566,4004.6,4004.5,0.7505]
[1759030155570,1.73738566,4004.6,4004.5,1.0005]
[1759030157675,1.73738566,4004.6,4004.5,1.44974]
[1759030158077,1.73738566,4004.6,4004.5,1.0005]
[1759030167367,1.73738566,4004.6,4004.5,1.44974]
[1759030168079,1.73738566,4004.6,4004.5,1.0005]
[1759030169480,1.73738566,4004.6,4004.5,0.7505]
[1759030169680,1.73738566,4004.6,4004.5,1.0005]
[1759030170678,1.73738566,4004.6,4004.5,1.44974]
[1759030170880,1.52228566,4004.6,4004.5,1.44974]
[1759030171075,1.52228566,4004.6,4004.5,1.54904]
[1759030171486,1.52228566,4004.6,4004.5,1.0998]
[1759030171677,1.52228566,4004.6,4004.5,1.0005]
[1759030171874,1.73788566,4004.6,4004.5,1.0005]
[1759030172283,1.73788566,4004.6,4004.5,0.4655]
[1759030172981,1.73788566,4004.6,4004.5,0.2155]
[1759030173181,1.20795,4004.4,4004.3,3.419]
[1759030173380,1.20795,4004.4,4004.3,3.669]
[1759030173883,1.20795,4004.4,4004.3,4.0011]
[1759030174185,1.20795,4004.4,4004.3,4.2209]
[1759030175179,1.74421579,4004.4,4004.3,4.2209]
[1759030175373,1.74421579,4004.4,4004.3,3.8888]
[1759030177283,1.74421579,4004.4,4004.3,4.2209]
[1759030178381,1.74421579,4004.4,4004.3,3.8888]
[1759030178782,1.74421579,4004.4,4004.3,4.2209]
[1759030179892,1.74421579,4004.4,4004.3,3.4578]
[1759030180993,1.74421579,4004.4,4004.3,3.669]
[1759030181385,1.74421579,4004.4,4004.3,4.0011]
[1759030181582,0.53626579,4004.4,4004.3,4.2209]
[1759030181786,0.98551579,4004.4,4004.3,4.67016]
[1759030187494,1.30861579,4004.4,4004.3,4.67016]
[1759030189596,1.30861579,4004.4,4004.3,4.2209]
[1759030192699,1.52861579,4004.4,4004.3,4.2209]
[1759030193882,1.74421579,4004.4,4004.3,4.2209]
[1759030197496,1.74421579,4004.4,4004.3,3.6388]
[1759030197697,1.74421579,4004.4,4004.3,3.8888]
[1759030197894,1.74421579,4004.4,4004.3,4.2141]
[1759030208701,1.74421579,4004.4,4004.3,3.6388]
[1759030208900,1.74421579,4004.4,4004.3,3.4578]
[1759030210106,6.74421579,4004.4,4004.3,3.2078]
[1759030210298,1.20821,4003.9,4003.8,3.2078]
[1759030210502,1.74447579,4003.9,4003.8,3.4578]
[1759030210804,1.74447579,4003.9,4003.8,3.669]
[1759030214011,1.74447579,4003.9,4003.8,3.419]
[1759030214307,1.74447579,4003.9,4003.8,3.9871]
[1759030214501,1.74447579,4003.9,4003.8,4.1929]
[1759030214707,1.53337579,4003.9,4003.8,4.1929]
[1759030217107,0.98557579,4003.9,4003.8,4.1929]
[1759030217904,1.31757579,4003.9,4003.8,4.1929]
[1759030220597,0.98557579,4003.9,4003.8,5.60707402]
[1759030220907,0.78131,4003.9,4003.8,4.1929]
[1759030222209,0.44931,4003.9,4003.8,4.1929]
[1759030222408,0.7813,4004.1,4003.8,4.32412]
[1759030222608,0.7813,4004.1,4004.0,0.7351]
[1759030222906,1.3183853,4004.1,4004.0,0.9851]
[1759030224210,1.5341853,4004.1,4004.0,0.9851]
[1759030226705,0.5370853,4004.1,4004.0,1.5633]
[1759030226904,0.9863753,4004.1,4004.0,1.5633]
[1759030227210,1.3049753,4004.1,4004.0,1.114]
[1759030227608,0.5370853,4004.1,4004.0,1.5633]
[1759030227913,0.44927,4004.2,4004.1,0.4165]
[1759030228104,0.44927,4004.2,4004.1,0.7368]
[1759030228713,0.76787,4004.2,4004.1,0.7368]
[1759030230111,0.3186,4004.2,4004.1,1.18609]
[1759030230711,0.76787,4004.2,4004.1,1.18609]
[1759030232510,0.76787,4004.2,4004.1,2.32104255]
[1759030233212,0.98997,4004.2,4004.1,2.32104255]
[1759030235810,0.5407,4004.2,4004.1,2.32104255]
[1759030237614,0.2221,4004.4,4004.1,1.13495255]
[1759030237817,0.5407,4004.6,4004.5,1.18604]
[1759030238017,1.07799855,4004.6,4004.5,2.57099255]
[1759030239007,3.21073807,4004.7,4004.6,1.18603]
[1759030248125,3.52933807,4004.7,4004.6,1.18603]
[1759030249224,3.75143807,4004.7,4004.6,1.18603]
[1759030250631,3.97293807,4004.7,4004.6,0.4165]
[1759030250930,3.97293807,4004.7,4004.6,0.65963]
[1759030260541,3.97293807,4004.7,4004.6,1.19703]
[1759030262942,3.75143807,4004.7,4004.6,1.19703]
[1759030263138,0.1364,4005.0,4004.5,1.38495255]
[1759030263139,0.4193,4005.5,4005.4,0.98124]
[1759030263336,0.4193,4005.5,4005.4,2.58609255]
[1759030264036,0.42220257,4005.5,4005.4,2.78454878]
[1759030265144,0.75710257,4005.5,4005.4,2.78454878]
[1759030266843,0.00290257,4005.5,4005.4,2.78454878]
[1759030267736,0.75710257,4005.5,4005.4,0.95045623]
[1759030268046,0.88940257,4005.5,4005.4,0.25245519]
[1759030271543,7.02435512,4005.5,4005.4,0.00245519]
[1759030271739,7.56012358,4005.5,4005.4,0.25245519]
[1759030272244,7.56012358,4005.5,4005.4,0.00245519]
[1759030272546,7.56012358,4005.5,4005.4,0.25245519]
[1759030279945,6.42517103,4005.5,4005.4,0.25245519]
[1759030281351,6.42517103,4005.5,4005.4,1.02119519]
[1759030281549,0.75710257,4005.5,4005.4,2.59814774]
[1759030281752,0.21210257,4005.5,4005.4,2.59814774]
[1759030282053,1.33653257,4005.5,4005.4,0.00245519]
[1759030282251,0.88740257,4005.5,4005.4,0.25245519]
[1759030282455,0.75560257,4005.5,4005.4,1.92500774]
[1759030283052,0.75560257,4005.5,4005.4,0.00245519]
[1759030283053,0.88740257,4005.5,4005.4,0.00245519]
[1759030283248,1.42327728,4005.5,4005.4,0.00245519]
[1759030283447,1.42327728,4005.5,4005.4,0.25245519]
[1759030283655,1.42327728,4005.5,4005.4,0.00245519]
[1759030283851,6.42327728,4005.5,4005.4,0.00245519]
[1759030285855,1.42327728,4005.5,4005.4,0.00245519]
[1759030297159,1.87240728,4005.5,4005.4,0.00245519]
[1759030297454,0.66783,4004.6,4004.5,0.3193]
[1759030297657,0.66783,4004.6,4004.0,0.3193]
[1759030297658,0.9889,4004.1,4004.0,0.3193]
[1759030297956,1.20751,4003.9,4003.8,3.663]
[1759030298160,1.20751,4003.9,4003.8,3.9823]
[1759030298456,1.20751,4003.9,4003.8,3.98442954]
[1759030300154,0.7582,4003.9,4003.8,4.19212954]
[1759030300557,0.3295,4004.7,4004.1,0.4129]
[1759030300765,0.6678,4004.9,4004.8,0.4129]
[1759030300968,0.53494806,4004.9,4004.8,0.7322]
[1759030301158,1.20735,4005.3,4005.2,0.7322]
[1759030301359,1.74227783,4005.3,4005.2,0.7322]
[1759030308666,0.98407783,4005.3,4005.2,0.7322]
[1759030309661,1.20267783,4005.3,4005.2,0.7322]
[1759030310369,1.74227783,4005.3,4005.2,0.7322]
[1759030312371,1.74227783,4005.3,4005.2,0.9822]
[1759030316870,1.74227783,4005.3,4005.2,0.5245]
[1759030317077,1.74227783,4005.3,4005.2,0.7745]
[1759030317476,1.74227783,4005.3,4005.2,0.9817]
[1759030318666,0.00290257,4005.5,4005.2,0.9817]
[1759030318667,0.00290257,4005.5,4005.4,0.87554]
[1759030318866,0.00290257,4005.5,4005.4,2.62738906]
[1759030319678,0.00290257,4005.5,4005.4,2.17824906]
[1759030323785,0.00290257,4005.5,4005.4,7.17824906]
[1759030324077,1.12296,4005.1,4003.8,1.10336991]
[1759030324279,24.70314,4005.4,4002.9,4.49341153]
[1759030324280,2.82789812,4003.9,4002.9,4.49341153]
[1759030324470,0.44955,4001.8,4001.7,0.4264]
[1759030324673,2.46018858,4001.8,4001.7,0.4264]
[1759030325482,2.46018858,4001.8,4001.5,0.1366]
[1759030325483,0.44957,4001.6,4001.5,0.1366]
[1759030325677,0.44957,4001.6,4001.5,0.11377591]
[1759030325980,0.44962,4001.1,4001.0,0.643]
[1759030326177,1.86356906,4001.1,4001.0,0.4745]
[1759030326380,2.46025858,4001.1,4001.0,0.4745]
[1759030326679,1.04630952,4001.1,4001.0,0.47634066]
[1759030328080,0.44961,4001.2,4001.1,0.7643]
[1759030331687,0.44961,4001.2,4001.1,0.3379]
[1759030332285,0.44961,4001.2,4001.1,0.544]
[1759030333181,0.44961,4001.2,4001.1,0.7529]
[1759030341592,1.07118301,4001.2,4001.1,0.7529]
[1759030341783,1.07118301,4001.2,4001.1,0.544]
[1759030342184,1.07118301,4001.2,4001.0,0.13200001]
[1759030342487,0.62157301,4001.1,4001.0,0.13200001]
[1759030344404,0.62157301,4001.1,4001.0,0.44780001]
[1759030345207,0.78248,4000.6,4000.5,0.3474]
[1759030345502,0.78248,4000.6,4000.5,0.5713]
[1759030346101,0.78248,4000.6,4000.5,0.57454465]
[1759030347202,0.44968,4000.6,4000.5,0.89034465]
[1759030349100,1.40578584,4000.6,4000.5,0.89034465]
[1759030350203,1.23938584,4000.6,4000.5,0.89034465]
[1759030352405,1.23938584,4000.6,4000.5,0.75374465]
[1759030352613,1.23938584,4000.6,4000.5,0.78323505]
[1759030355006,1.07298584,4000.6,4000.5,0.78323505]
[1759030355309,1.23256485,4000.6,4000.5,0.78323505]
[1759030356708,1.78166485,4000.6,4000.5,0.78323505]
[1759030357312,1.78166485,4000.6,4000.5,0.00324465]
[1759030357708,1.78166485,4000.6,4000.5,0.31904465]
[1759030358624,1.78166485,4000.6,4000.5,0.52984465]
[1759030362304,0.66303,4000.1,4000.0,1.02105]
[1759030362505,2.91899712,4000.1,4000.0,0.2108]
[1759030363409,2.91899712,4000.1,4000.0,0.21329704]
[1759030367222,2.91899712,4000.1,4000.0,0.43719704]
[1759030367520,2.91899712,4000.1,4000.0,0.21329704]
[1759030369127,2.91899712,4000.1,4000.0,0.43719704]
[1759030369813,2.91899712,4000.1,4000.0,0.88694704]
[1759030370516,2.91899712,4000.1,4000.0,1.02354704]
[1759030371315,0.56958485,4000.1,4000.0,1.02354704]
[1759030373423,0.56958485,4000.1,4000.0,1.35564704]
[1759030376123,0.56958485,4000.1,4000.0,1.61264704]
[1759030376320,0.2266,4000.5,4000.4,0.4497]
[1759030376520,1.29497266,4000.5,4000.4,1.4596]
[1759030377828,0.97237266,4000.5,4000.4,1.4596]
[1759030378025,0.52917266,4000.5,4000.4,2.59688227]
[1759030378325,0.52917266,4000.5,4000.4,1.4596]
[1759030381925,0.5492,4001.2,4001.1,1.20252]
[1759030382125,1.07855281,4001.2,4001.1,1.45952]
[1759030382634,1.29515281,4001.2,4001.1,1.45952]
[1759030385537,2.43243508,4001.2,4001.1,1.45952]
[1759030386933,2.43243508,4001.2,4000.0,39.13309704]
[1759030386934,0.7658,4000.1,4000.0,0.00249704]
[1759030387235,3.5688979,4000.1,4000.0,0.00249704]
[1759030388136,2.43161563,4000.1,4000.0,0.00249704]
[1759030388329,3.5688979,4000.1,4000.0,0.00249704]
[1759030388530,2.43161563,4000.1,4000.0,0.00249704]
[1759030389639,3.5688979,4000.1,4000.0,0.00249704]
[1759030399955,4.0186279,4000.1,4000.0,0.00249704]
[1759030407861,4.01025564,4000.1,4000.0,0.00249704]
[1759030413064,4.01025564,4000.1,4000.0,1e-08]
[1759030416660,3.15373599,4000.1,4000.0,1e-08]
[1759030431675,3.15373599,4000.1,4000.0,0.54740001]
[1759030431878,3.15373599,4000.1,4000.0,0.75810001]
[1759030440065,3.15373599,4000.1,4000.0,0.54740001]
[1759030440271,3.15373599,4000.1,4000.0,1e-08]
[1759030441573,2.83113599,4000.1,4000.0,1e-08]
[1759030445388,2.83113599,4000.1,4000.0,0.54250001]
[1759030445781,2.83113599,4000.1,4000.0,1e-08]
[1759030458986,1.4130911,4000.1,4000.0,0.73760001]
[1759030459293,1.7350911,4000.1,4000.0,0.73760001]
[1759030462890,1.5184911,4000.1,4000.0,0.73760001]
[1759030463094,2.93653599,4000.1,4000.0,0.86330001]
[1759030463302,2.93653599,4000.1,4000.0,0.73760001]
[1759030463303,3.16253599,4000.1,4000.0,0.73760001]
[1759030471399,3.16253599,4000.1,4000.0,1e-08]
[1759030471702,3.16253599,4000.1,4000.0,0.22430001]
[1759030471902,3.16253599,4000.1,4000.0,0.77620001]
[1759030475407,2.93653599,4000.1,4000.0,0.90150001]
[1759030475700,3.15053599,4000.1,4000.0,0.90150001]
[1759030475905,3.15053599,4000.1,4000.0,0.77620001]
[1759030477202,3.15053599,4000.1,4000.0,0.55080001]
[1759030478808,2.87021088,4000.1,4000.0,0.55080001]
[1759030488218,2.54821088,4000.1,4000.0,1e-08]
[1759030502621,2.88291088,4000.1,4000.0,0.55220001]
[1759030503021,1.7451911,4000.1,4000.0,0.88870001]
[1759030503221,1.4104911,4000.1,4000.0,0.88870001]
[1759030503427,2.88411088,4000.1,4000.0,0.75920001]
[1759030504219,3.68713066,4000.1,4000.0,1e-08]
[1759030504614,2.54941088,4000.1,4000.0,1e-08]
[1759030506224,3.68713066,4000.1,4000.0,1e-08]
[1759030506728,8.68713066,4000.1,4000.0,1e-08]
[1759030509227,8.94013066,4000.1,4000.0,1e-08]
[1759030529337,0.87788,3998.8,3998.7,1.86665835]
[1759030529537,2.01559978,3998.8,3998.7,2.11965835]
[1759030529737,2.34719978,3998.8,3998.7,0.773]
[1759030530126,2.35016477,3998.8,3998.7,0.98464763]
[1759030530732,2.35016477,3998.8,3998.7,0.21394763]
[1759030531328,2.35016477,3998.8,3998.7,0.52234763]
[1759030532641,2.35016477,3998.8,3998.7,0.73164763]
[1759030535043,2.35016477,3998.8,3998.7,0.98464763]
[1759030537142,2.35016477,3998.8,3998.7,1.43453763]
[1759030537345,2.35016477,3998.8,3998.7,0.98464763]
[1759030538537,1.21244499,3998.8,3998.7,1.43453763]
[1759030538932,0.00296499,3998.8,3998.7,7.78119598]
[1759030539442,0.00296499,3998.8,3998.7,2.78119598]
[1759030539940,0.55496499,3998.8,3998.7,2.78119598]
[1759030540340,2.63088134,3998.8,3998.7,0.77534763]
[1759030541940,2.63088134,3998.8,3998.7,1.22523763]
[1759030542137,2.63088134,3998.8,3998.7,1.43453763]
[1759030543243,2.63088134,3998.8,3998.7,0.98464763]
[1759030544246,0.76256499,3998.8,3998.7,1.43453763]
[1759030544443,1.21244499,3998.8,3998.7,1.43453763]
[1759030545546,0.76256499,3998.8,3998.7,1.43453763]
[1759030546747,0.00296499,3998.8,3998.7,6.43453763]
[1759030547045,0.00296499,3998.8,3998.7,7.78119598]
[1759030554249,0.00296499,3998.8,3998.7,6.43453763]
[1759030558752,0.55186499,3998.8,3998.7,6.43453763]
[1759030559752,0.55186499,3998.8,3998.7,6.18153763]
[1759030560052,0.55186499,3998.8,3998.7,6.43453763]
[1759030561153,0.21636499,3998.8,3998.7,6.43453763]
[1759030561355,0.00296499,3998.8,3998.7,6.43453763]
[1759030565749,0.9987,3999.5,3999.4,0.7557]
[1759030565957,1.12431,4000.3,3999.8,0.4441]
[1759030565958,0.99866,3999.9,3999.8,0.4441]
[1759030566154,1.52195576,3999.9,3999.8,0.6971]
[1759030566552,1.52195576,3999.9,3999.8,1.0087]
[1759030566861,1.74711484,3999.9,3999.8,1.0087]
[1759030567258,1.74711484,3999.9,3999.8,0.253]
[1759030567752,1.74711484,3999.9,3999.8,0.5646]
[1759030568055,1.74711484,3999.9,3999.8,0.7887]
[1759030569048,0.5738,3999.5,3999.3,1.34948768]
[1759030569248,0.5738,3999.5,3999.1,1.34948768]
[1759030569249,0.88622,3999.3,3999.1,1.34948768]
[1759030569453,0.7719,3999.2,3999.1,1.57358768]
[1759030569650,0.7719,3999.2,3999.1,2.16468768]
[1759030569956,0.7719,3999.2,3999.1,2.37058768]
[1759030570462,0.7719,3999.2,3999.1,2.11758768]
[1759030570653,0.7719,3999.2,3999.1,2.37058768]
[1759030571759,0.7719,3999.2,3999.1,2.11758768]
[1759030571963,0.7719,3999.2,3999.1,2.37058768]
[1759030574261,0.7719,3999.2,3999.1,2.11758768]
[1759030574462,0.7719,3999.2,3999.1,1.0211]
[1759030575059,1.22174,3999.2,3999.1,1.0211]
[1759030575460,0.7394,3998.9,3998.8,0.5556]
[1759030575661,0.7394,3998.9,3998.8,0.8086]
[1759030576362,1.18927,3998.9,3998.8,0.8086]
[1759030577257,1.18927,3998.9,3998.8,0.253]
[1759030578262,1.18927,3998.9,3998.8,0.5911]
[1759030581267,1.18927,3998.9,3998.8,0.8086]
[1759030582068,1.18927,3998.9,3998.8,0.5556]
[1759030582268,1.18927,3998.9,3998.8,0.8086]
[1759030586965,0.44988,3998.8,3998.7,0.00234763]
[1759030587168,1.21788,3998.8,3998.7,0.25534763]
[1759030588268,1.21788,3998.8,3998.7,0.59414763]
[1759030588470,1.21788,3998.8,3998.7,0.80484763]
[1759030590766,1.21788,3998.8,3998.7,0.55184763]
[1759030590969,1.21788,3998.8,3998.7,0.80484763]
[1759030592572,1.21788,3998.8,3998.7,1.01444763]
[1759030600583,2.35617236,3998.8,3998.7,1.01444763]
[1759030605478,2.35617236,3998.8,3998.7,2.36393531]
[1759030605479,2.87826052,3998.8,3998.7,2.36393531]
[1759030611087,2.87826052,3998.8,3998.7,1.01444763]
[1759030614391,2.87826052,3998.8,3998.7,2.36393531]
[1759030615286,2.87826052,3998.8,3998.7,2.81382531]
[1759030621105,2.87826052,3998.8,3998.7,2.36393531]
[1759030621306,2.87826052,3998.8,3998.7,0.25534763]
[1759030622600,2.87826052,3998.8,3998.7,0.58654763]
[1759030622898,2.42838052,3998.8,3998.7,1.47683763]
[1759030623092,1.73996816,3998.8,3998.7,1.47683763]
[1759030623491,1.73996816,3998.8,3998.7,1.02694763]
[1759030624804,1.73996816,3998.8,3998.7,1.47683763]
[1759030626796,1.73996816,3998.8,3998.7,1.22383763]
[1759030627004,1.29008816,3998.8,3998.7,1.47683763]
[1759030627503,1.73996816,3998.8,3998.7,1.47683763]
[1759030628902,1.29008816,3998.8,3998.7,1.47683763]
[1759030629098,0.52208816,3998.8,3998.7,1.47683763]
[1759030629300,1.70956816,3998.8,3998.7,1.47683763]
[1759030634204,1.70956816,3998.8,3998.7,1.22383763]
[1759030634509,1.70956816,3998.8,3998.7,1.47683763]
[1759030634807,1.70956816,3998.8,3998.7,1.02694763]
[1759030635107,1.70912296,3998.8,3998.7,1.02694763]
[1759030635295,2.84741532,3998.8,3998.7,1.02694763]
[1759030637503,0.73984296,3998.8,3998.7,1.47683763]
[1759030637701,0.52164296,3998.8,3998.7,1.47683763]
[1759030639005,1.04724296,3998.8,3998.7,1.47683763]
[1759030639299,1.49712296,3998.8,3998.7,1.47683763]
[1759030639505,1.18802296,3998.8,3998.7,1.47683763]
[1759030641113,1.49712296,3998.8,3998.7,1.47683763]
[1759030641998,1.18802296,3998.8,3998.7,1.47683763]
[1759030642609,0.73814296,3998.8,3998.7,1.47683763]
[1759030644606,0.52164296,3998.8,3998.7,1.47683763]
[1759030644813,1.12443,3999.8,3998.7,1.47683763]
[1759030644814,0.44982,3999.4,3999.2,0.7429]
[1759030645003,0.99702,3999.4,3999.3,0.9959]
[1759030645206,1.51898218,3999.4,3999.3,0.9959]
[1759030645401,1.73258218,3999.4,3999.3,0.9959]
[1759030645702,1.73258218,3999.4,3999.3,0.4803]
[1759030647805,1.73258218,3999.4,3999.3,0.7899]
[1759030648310,1.73258218,3999.4,3999.3,0.9959]
[1759030650107,1.73258218,3999.4,3999.3,0.7899]
[1759030650507,1.73258218,3999.4,3999.0,0.135]
[1759030650508,0.44985,3999.1,3999.0,0.7429]
[1759030650706,2.34894236,3999.1,3999.0,0.9959]
[1759030650908,2.87090454,3999.1,3999.0,0.9959]
[1759030655717,2.87090454,3999.1,3999.0,0.7429]
[1759030655916,2.87090454,3999.1,3999.0,0.9959]
[1759030656110,2.87090454,3999.1,3999.0,1.1309]
[1759030656812,0.97181218,3999.1,3999.0,1.1309]
[1759030657014,0.44984,3999.2,3999.0,0.8213]
[1759030657318,0.44984,3999.2,3999.1,0.7429]
[1759030657515,1.21064,3999.2,3999.1,0.7429]
[1759030657821,1.73372009,3999.2,3999.1,0.7429]
[1759030663114,1.21065,3999.1,3999.0,0.253]
[1759030663419,1.21065,3999.1,3999.0,0.7899]
[1759030665316,1.73376045,3999.1,3999.0,0.7899]
[1759030666317,1.73376045,3999.1,3999.0,0.9959]
[1759030668216,0.44987,3998.9,3998.8,1.34951563]
[1759030668409,1.21067,3998.9,3998.8,0.5616]
[1759030668610,1.21068,3998.8,3998.7,0.00234763]
[1759030668814,1.21068,3998.8,3998.7,0.25434763]
[1759030671009,1.21068,3998.8,3998.7,0.00234763]
[1759030671216,1.73395097,3998.8,3998.7,0.25434763]
[1759030672317,1.73396714,3998.8,3998.7,0.25434763]
[1759030673522,3.15213153,3998.8,3998.7,0.00234763]
[1759030673719,8.15213153,3998.8,3998.7,0.00234763]
[1759030681027,8.15213153,3998.8,3998.7,0.55234763]
[1759030681028,1.73396714,3998.8,3998.7,0.55234763]
[1759030681422,1.73396714,3998.8,3998.7,0.21424763]
[1759030681723,1.73396714,3998.8,3998.7,0.00234763]
[1759030685229,1.73396714,3998.8,3998.7,0.34044763]
[1759030685437,1.73396714,3998.8,3998.7,0.55234763]
[1759030686336,1.73396714,3998.8,3998.7,0.76974763]
[1759030687634,1.28408714,3998.8,3998.7,0.76974763]
[1759030687834,1.73396714,3998.8,3998.7,0.76974763]
[1759030689738,1.73396714,3998.8,3998.7,0.55234763]
[1759030690340,1.73396714,3998.8,3998.7,0.00234763]
[1759030694240,1.73658427,3998.8,3998.7,0.00234763]
[1759030722773,2.87510424,3998.8,3998.7,0.00234763]
[1759030727172,2.87510424,3998.8,3998.7,0.54064763]
[1759030727774,2.87510424,3998.8,3998.7,0.00234763]
[1759030730071,1.73658427,3998.8,3998.7,0.00234763]
[1759030730271,1.73658427,3998.8,3998.7,0.75904763]
[1759030730473,2.87510424,3998.8,3998.7,0.75904763]
[1759030731168,2.87510424,3998.8,3998.7,0.54064763]
[1759030731774,2.87510424,3998.8,3998.7,0.21464763]
[1759030732572,2.87510424,3998.8,3998.7,0.54064763]
[1759030736677,2.87510424,3998.8,3998.7,0.00234763]
[1759030737577,1.28670427,3998.8,3998.7,1.19943763]
[1759030737775,0.52590427,3998.8,3998.7,7.3379576]
[1759030737973,0.44983,3999.3,3999.2,0.7472]
[1759030738174,0.97658865,3999.3,3999.2,0.7472]
[1759030738480,2.66140862,3999.3,3999.2,0.7472]
[1759030739184,2.88530862,3999.3,3999.2,0.7472]
[1759030739480,1.52288865,3999.3,3999.2,0.7472]
[1759030740081,1.07305865,3999.3,3999.2,0.7472]
[1759030740282,0.52675865,3999.3,3999.2,0.7472]
[1759030743285,0.44981,3999.4,3999.2,0.87383]
[1759030743474,0.67101,3999.4,3999.3,0.7472]
[1759030743787,1.74569879,3999.4,3999.3,0.7472]
[1759030744179,1.74569879,3999.4,3999.3,0.9992]
[1759030746481,0.00215908,3999.9,3999.7,0.7472]
[1759030746482,0.77488,3999.8,3999.7,0.7472]
[1759030746877,0.99608,3999.8,3999.7,0.7472]
[1759030747586,0.00215908,3999.9,3999.8,0.87377]
[1759030747780,0.00215908,3999.9,3999.8,1.19697]
[1759030747981,0.54845908,3999.9,3999.8,1.19697]
[1759030750083,0.54845908,3999.9,3999.8,1.44897]
[1759030752090,0.54845908,3999.9,3999.8,0.9992]
[1759030752290,0.76655908,3999.9,3999.8,0.9992]
[1759030752590,0.76655908,3999.9,3999.8,0.7472]
[1759030752792,0.76655908,3999.9,3999.8,0.9992]
[1759030754488,0.22335908,3999.9,3999.8,0.9992]
[1759030755284,0.1326,4000.5,3999.8,0.9992]
[1759030755285,0.3271,4000.9,3999.8,6.69961]
[1759030755491,0.7679,4000.9,4000.8,0.7674]
[1759030755680,0.7679,4000.9,4000.8,1.0194]
[1759030755885,1.90641997,4000.9,4000.8,0.252]
[1759030756193,0.89048,4000.7,4000.6,0.2266]
[1759030756389,0.8926731,4000.7,4000.6,0.7915]
[1759030756591,1.2197731,4000.7,4000.6,0.7915]
[1759030760093,0.7700931,4000.7,4000.6,1.0194]
[1759030762598,0.0021931,4000.7,4000.6,2.15791997]
[1759030763099,0.7700931,4000.7,4000.6,1.0194]
[1759030766206,1.2197631,4000.7,4000.6,1.0194]
[1759030766999,0.0021931,4000.7,4000.6,2.60759997]
[1759030768311,0.4518631,4000.7,4000.6,2.60759997]
[1759030770407,0.0021931,4000.7,4000.6,2.60759997]
[1759030770705,0.4518631,4000.7,4000.6,2.60759997]
[1759030771910,0.0021931,4000.7,4000.6,2.60759997]
[1759030773211,0.4518631,4000.7,4000.6,2.60759997]
[1759030773511,1.2135631,4000.7,4000.6,1.0194]
[1759030773905,1.21141,4000.3,4000.2,0.4251]
[1759030774308,1.21141,4000.3,4000.2,0.6771]
[1759030774509,1.21141,4000.3,4000.2,1.0006]
[1759030774914,1.21141,4000.3,4000.2,1.45032]
[1759030777420,1.21141,4000.3,4000.2,2.58883997]
[1759030779930,0.7617,4000.3,4000.2,2.58883997]
[1759030782829,0.2257,4000.3,4000.2,2.58883997]
[1759030783034,0.67539,4000.5,4000.4,0.8748]
[1759030783221,1.21139,4000.5,4000.4,1.4503]
[1759030784125,0.98429,4000.5,4000.4,1.4503]
[1759030785326,1.05975599,4000.5,4000.4,1.4503]
[1759030785538,1.28685599,4000.5,4000.4,1.4503]